[Event "Serbian League 2024"]
[Site "Bajina Basta"]
[Date "2024.09.30"]
[Round "4.20"]
[White "Eren, Ataberk"]
[Black "Popovic, Dusan"]
[Result "1/2-1/2"]
[ECO "E94"]
[WhiteElo "2386"]
[BlackElo "2494"]
[Annotator "TA"]
[PlyCount "43"]
[EventDate "2024.09.26"]
[EventType "team-tourn"]
[EventCountry "SRB"]
[SourceTitle "playchess.com"]
[Source "ChessBase"]
[SourceQuality "1"]
[TimeControl "40/5400+30:1800+30"]

{[%evp 15,43,47,37,34,47,50,50,35,71,39,40,36,41,42,42,29,63,0,22,-34,-21,-32,-24,-35,-17,-43,-35,-30,-44,-43]} 1. d4 {[%emt 0:00:06]} Nf6 {[%emt 0:00:18]} 2. c4 {[%emt 0:00:07]} g6 {[%emt 0:00:06]} 3. Nc3 {[%emt 0:00:08]} Bg7 {[%emt 0:00:04]} 4. e4 {[%emt 0:00:04]} d6 {[%emt 0:00:05]} 5. Nf3 {[%emt 0:00:03]} O-O {[%emt 0:00:27]} 6. Be2 {[%emt 0:00:04]} e5 {[%emt 0:00:06]} 7. O-O {[%emt 0:00:05]} Bg4 {[%emt 0:00:36]} 8. d5 {[%emt 0:00:16]} a5 {[%emt 0:00:48]} 9. h3 {[%emt 0:00:05]} Bxf3 {[%emt 0:01:52]} 10. Bxf3 {[%emt 0:00:51]} Nbd7 {[%emt 0:04:53]} 11. a3 {[%emt 0:01:04] White is slightly better.} Kh8 {[%emt 0:01:33]} 12. Be3 {[%emt 0:01:26]} Ng8 {[%emt 0:02:04]} 13. b4 {[%emt 0:03:50] Black is weak on the light squares} Bh6 {[%emt 0:01:21]} 14. Bxh6 {[%emt 0:02:09]} Nxh6 {[%emt 0:00:15]} 15. Qd2 {[%emt 0:00:22]} Ng8 {[%emt 0:13:47]} 16. Na4 {[%emt 0:01:48] White is more active.} ({Better is} 16. Nb5 $14) 16... f5 {[%emt 0:12:10]} 17. bxa5 {[%emt 0:04:28]} (17. Nc3 $11) 17... b6 $15 {[%emt 0:01:21]} 18. Bd1 {[%emt 0:16:35]} Rxa5 {[%emt 0:04:31]} 19. exf5 $1 {[%emt 0:00:58]} Rxf5 {[%emt 0:20:28]} 20. Nc3 {[%emt 0:04:01]} Rf4 {[%emt 0:04:53]} 21. Qe2 {[%emt 0:01:09]} Nh6 {[%emt 0:09:57]} 22. g3 {[%emt 0:01:53] Weighted Error Value: White=0.18 (very precise) /Black=0.10 (very precise) .  Mistake:       	White=2     	---        Inaccurate:     	White=2     	Black=2      OK:         	White=3     	Black=4      Strong:       	White=1     	---} 1/2-1/2

[Event "Serbian League 2024"]
[Site "Bajina Basta"]
[Date "2024.09.30"]
[Round "4.21"]
[White "Sedlak, Nikola"]
[Black "Ozsakallioglu, Okan"]
[Result "1/2-1/2"]
[ECO "A12"]
[WhiteElo "2401"]
[BlackElo "2349"]
[Annotator "TA"]
[PlyCount "59"]
[EventDate "2024.09.26"]
[EventType "team-tourn"]
[EventCountry "SRB"]
[SourceTitle "playchess.com"]
[Source "ChessBase"]
[SourceQuality "1"]
[TimeControl "40/5400+30:1800+30"]

{[%evp 20,59,0,23,20,-17,13,13,31,-20,38,23,35,0,19,14,18,20,66,0,-7,-30,13,0,2,-48,-43,-49,-49,-63,-41,-53,0,0,-14,-44,-17,-30,0,-21,0,0]} 1. Nf3 {[%emt 0:00:58]} d5 {[%emt 0:00:05]} 2. g3 {[%emt 0:02:51]} c6 {[%emt 0:00:06]} 3. Bg2 {[%emt 0:00:21]} Bg4 {[%emt 0:00:06]} 4. O-O {[%emt 0:02:41]} Nf6 {[%emt 0:02:54]} 5. d3 {[%emt 0:04:20]} e6 {[%emt 0:01:33]} 6. Nbd2 {[%emt 0:01:51]} Be7 {[%emt 0:01:18]} 7. c4 {[%emt 0:02:18]} O-O {[%emt 0:01:49]} 8. b3 {[%emt 0:00:07]} Nbd7 {[%emt 0:00:06]} 9. Bb2 {[%emt 0:00:21]} a5 {[%emt 0:00:02]} 10. a3 {[%emt 0:00:13]} Qb6 {[%emt 0:04:16]} 11. Qc2 {[%emt 0:03:40]} h6 {[%emt 0:00:14]} 12. Bc3 {[%emt 0:05:43] Onnauwkeurig} Rfe8 {[%emt 0:00:34] Onnauwkeurig} 13. Qb2 {[%emt 0:01:45] OK} Bf8 {[%emt 0:06:55][%cal Oe6e5] OK} 14. b4 {[%emt 0:03:38] Fout (0.5)} (14. e4 $14) {Beter is} 14... axb4 {[%emt 0:02:24] Fout (0.6)} (14... e5 $1 $11 15. cxd5 cxd5) 15. axb4 $14 {[%emt 0:00:06]} Bf5 {[%emt 0:07:27]} 16. Rad1 {[%emt 0:08:24] Onnauwkeurig} (16. Rxa8 $5 {vereenvoudigt} Rxa8 17. c5 Qc7 18. Bxf6 Nxf6 19. Ra1) 16... Ra4 {[%emt 0:07:51][%cal Rf8b4] [#]} 17. e4 $1 {[%emt 0:06:34]} Bg4 {[%emt 0:03:56][%cal Rf8b4]} (17... Bg6 18. c5) 18. c5 {[%emt 0:04:26] OK} Qa6 {[%emt 0:05:08] is het overwegen waard. Fout (0.5)} (18... Qb5 $11) {Wit zou moeten spelen} 19. h3 {[%emt 0:04:29] Fout (0.7)} (19. Ra1 $1 $14 Bxf3 (19... Rxa1 $2 20. Rxa1 Qxd3 21. Bf1 $18) 20. Rxa4 Qxa4 21. Nxf3 (21. Bxf3 Ra8 $14)) 19... Bxf3 $11 {[%emt 0:08:38] OK} 20. Nxf3 {[%emt 0:00:39]} Ra8 {[%emt 0:01:24] Onnauwkeurig} (20... Ra2 $5 21. Qb3 e5 $17) 21. e5 {[%emt 0:02:32]} Ne8 {[%emt 0:00:04][%cal Bf6e8,Be8c7,Bc7b5][%mdl 32] EV=13.26. Goes to b5 (dbg)). OK} {Wit zou kunnen overwegen} 22. Rfe1 {[%emt 0:05:25] Fout (0.5)} (22. Qd2 $11) 22... Nc7 {[%emt 0:00:09]} 23. d4 {[%emt 0:07:02]} Ra2 {[%emt 0:01:40]} 24. Qc1 {[%emt 0:00:56] OK} Qa4 {[%emt 0:00:11]} 25. Rd2 {[%emt 0:00:59]} Nb5 {[%emt 0:01:48] Onnauwkeurig} 26. Rxa2 {[%emt 0:05:07] Beste (Gemakkelijk)} Qxa2 {[%emt 0:00:03]} 27. Bd2 {[%emt 0:01:24] Onnauwkeurig} Ra3 {[%emt 0:01:39] Onnauwkeurig} 28. Re3 {[%emt 0:01:03] OK} Nb8 {[%emt 0:03:38] Onnauwkeurig} 29. Bf1 {[%emt 0:01:11]} Rxe3 {[%emt 0:00:54]} 30. fxe3 {[%emt 0:02:24] Blunder waarde: Wit=0.19 (erg precies) /Zwart=0.21 (precies) .  Fout:        	Wit=3      	Zwart=2      Onnauwkeurig:    	Wit=3      	Zwart=5      OK:         	Wit=4      	Zwart=3      Beste:        	Wit=1      	---} 1/2-1/2

[Event "Serbian League 2024"]
[Site "Bajina Basta"]
[Date "2024.09.30"]
[Round "4.22"]
[White "Ljepic, Andrej"]
[Black "Stojanovic, Dalibor"]
[Result "1/2-1/2"]
[ECO "A45"]
[WhiteElo "2326"]
[BlackElo "2448"]
[Annotator "RC"]
[PlyCount "139"]
[EventDate "2024.09.26"]
[EventType "team-tourn"]
[EventCountry "SRB"]
[SourceTitle "playchess.com"]
[Source "ChessBase"]
[SourceQuality "1"]
[TimeControl "40/5400+30:1800+30"]

1. d4 {[%emt 0:00:04]} Nf6 {[%emt 0:00:41]} 2. Bg5 {[%emt 0:00:11]} g6 {[%emt 0:01:10]} 3. Bxf6 {[%emt 0:00:17]} exf6 {[%emt 0:00:06]} 4. e3 {[%emt 0:00:09]} d6 {[%emt 0:01:26]} 5. g3 {[%emt 0:02:56]} f5 {[%emt 0:01:00]} 6. Bg2 {[%emt 0:01:51]} Nd7 {[%emt 0:00:51]} 7. h4 {[%emt 0:02:06]} h5 {[%emt 0:05:48]} 8. Ne2 {[%emt 0:01:00]} Bh6 {[%emt 0:00:42]} 9. c4 {[%emt 0:05:48]} O-O {[%emt 0:04:02]} 10. O-O {[%emt 0:01:10]} Nf6 {[%emt 0:01:48]} 11. Nbc3 {[%emt 0:06:04]} c6 {[%emt 0:05:36]} 12. Nf4 {[%emt 0:05:04]} Ng4 {[%emt 0:02:15]} 13. b4 {[%emt 0:18:41]} Bd7 {[%emt 0:08:43]} 14. b5 {[%emt 0:02:46]} Rc8 {[%emt 0:04:05]} 15. a4 {[%emt 0:12:32]} Re8 {[%emt 0:18:07]} 16. Rb1 {[%emt 0:11:14]} cxb5 {[%emt 0:08:33]} 17. Nxb5 {[%emt 0:03:38]} Bxf4 {[%emt 0:01:14]} 18. exf4 {[%emt 0:00:42]} Bxb5 {[%emt 0:00:05]} 19. Rxb5 {[%emt 0:01:29]} b6 {[%emt 0:04:04]} 20. Qd3 {[%emt 0:00:43]} Re7 {[%emt 0:01:28]} 21. Bf3 {[%emt 0:04:27]} Nf6 {[%emt 0:01:17]} 22. a5 {[%emt 0:01:58]} bxa5 {[%emt 0:01:21]} 23. Ra1 {[%emt 0:00:13]} Rec7 {[%emt 0:02:01]} 24. Ra4 {[%emt 0:03:45]} Qe7 {[%emt 0:05:07]} 25. Kf1 {[%emt 0:05:52]} Qe6 {[%emt 0:07:18]} 26. Be2 {[%emt 0:01:06]} Ne4 {[%emt 0:02:23]} 27. Kg2 {[%emt 0:00:13]} Nc3 {[%emt 0:01:37]} 28. Qxc3 {[%emt 0:00:05]} Qxe2 {[%emt 0:00:03]} 29. Qf3 {[%emt 0:05:31]} Qxf3+ {[%emt 0:06:56]} 30. Kxf3 {[%emt 0:00:05]} Rxc4 {[%emt 0:00:04]} 31. Rbxa5 {[%emt 0:00:11]} Rxa4 {[%emt 0:02:59]} 32. Rxa4 {[%emt 0:00:05]} Ra8 {[%emt 0:00:03]} 33. Ra6 {[%emt 0:00:45]} Kf8 {[%emt 0:00:23]} 34. d5 {[%emt 0:01:52]} Ke7 {[%emt 0:00:21]} 35. Ke3 {[%emt 0:00:09]} Kd7 {[%emt 0:01:32]} 36. Kd3 {[%emt 0:00:24]} Kc7 {[%emt 0:00:21]} 37. Kc4 {[%emt 0:00:24]} Rc8 {[%emt 0:00:30]} 38. Kd4 {[%emt 0:01:42]} Kb7 {[%emt 0:02:28]} 39. Rxd6 {[%emt 0:00:09]} a5 {[%emt 0:00:05]} 40. Rd7+ {[%emt 0:01:03]} Rc7 {[%emt 0:00:20]} 41. Rd8 {[%emt 0:30:20]} a4 {[%emt 0:03:37]} 42. Re8 {[%emt 0:00:00]} Rc8 {[%emt 0:02:18]} 43. Re3 {[%emt 0:00:00]} Ra8 {[%emt 0:02:48]} 44. Ra3 {[%emt 0:00:00]} Kc7 {[%emt 0:15:42]} 45. Kc5 {[%emt 0:02:53]} Kd7 {[%emt 0:01:08]} 46. Kb6 {[%emt 0:00:49]} Kd6 {[%emt 0:01:11]} 47. Kb7 {[%emt 0:00:05]} Ra5 {[%emt 0:00:16]} 48. Kb6 {[%emt 0:00:02]} Rxd5 {[%emt 0:00:06]} 49. Rxa4 {[%emt 0:00:02]} Rd2 {[%emt 0:00:05]} 50. Rb4 {[%emt 0:01:36]} Kd5 {[%emt 0:02:11]} 51. Kc7 {[%emt 0:00:17]} Rxf2 {[%emt 0:00:04]} 52. Kd7 {[%emt 0:00:45]} Re2 {[%emt 0:00:43]} 53. Rb3 {[%emt 0:00:28]} Kd4 {[%emt 0:00:51]} 54. Kd6 {[%emt 0:00:42]} Re6+ {[%emt 0:02:58]} 55. Kd7 {[%emt 0:00:04]} Kc4 {[%emt 0:01:35]} 56. Ra3 {[%emt 0:00:10]} Kd5 {[%emt 0:01:19]} 57. Rd3+ {[%emt 0:00:33]} Kc5 {[%emt 0:00:44]} 58. Rc3+ {[%emt 0:00:15]} Kd4 {[%emt 0:00:30]} 59. Rb3 {[%emt 0:00:10]} Ke4 {[%emt 0:00:34]} 60. Ra3 {[%emt 0:00:20]} Kd4 {[%emt 0:01:22]} 61. Rb3 {[%emt 0:00:07]} Kc4 {[%emt 0:01:10]} 62. Ra3 {[%emt 0:00:06]} Kd4 {[%emt 0:00:05]} 63. Rb3 {[%emt 0:00:05]} Re3 {[%emt 0:00:21]} 64. Rxe3 {[%emt 0:00:20]} Kxe3 {[%emt 0:00:04]} 65. Ke7 {[%emt 0:00:02]} Kf3 {[%emt 0:00:04]} 66. Kxf7 {[%emt 0:00:04]} Kxg3 {[%emt 0:00:06]} 67. Kxg6 {[%emt 0:00:04]} Kxf4 {[%emt 0:00:32]} 68. Kxh5 {[%emt 0:00:10]} Kg3 {[%emt 0:00:10]} 69. Kg6 {[%emt 0:00:25]} Kxh4 {[%emt 0:00:12]} 70. Kxf5 {[%emt 0:00:06]} 1/2-1/2

[Event "Serbian League 2024"]
[Site "Bajina Basta"]
[Date "2024.09.30"]
[Round "4.23"]
[White "Alimpic, Aleksa"]
[Black "Ivanovic, Dragutin"]
[Result "1-0"]
[ECO "A40"]
[WhiteElo "2253"]
[BlackElo "2308"]
[Annotator "RC"]
[PlyCount "111"]
[EventDate "2024.09.26"]
[EventType "team-tourn"]
[EventCountry "SRB"]
[SourceTitle "playchess.com"]
[Source "ChessBase"]
[SourceQuality "1"]
[TimeControl "40/5400+30:1800+30"]

1. d4 {[%emt 0:00:03]} Nc6 {[%emt 0:00:48]} 2. Nf3 {[%emt 0:00:31]} Nf6 {[%emt 0:00:55]} 3. Bg5 {[%emt 0:02:38]} h6 {[%emt 0:01:11]} 4. Bxf6 {[%emt 0:00:38]} gxf6 {[%emt 0:00:12]} 5. c4 {[%emt 0:06:31]} e5 {[%emt 0:08:46]} 6. Nc3 {[%emt 0:04:13]} d6 {[%emt 0:01:22]} 7. g3 {[%emt 0:09:56]} Bg7 {[%emt 0:01:09]} 8. Bg2 {[%emt 0:01:28]} f5 {[%emt 0:03:51]} 9. dxe5 {[%emt 0:10:15]} Nxe5 {[%emt 0:00:22]} 10. Nxe5 {[%emt 0:01:58]} Bxe5 {[%emt 0:00:22]} 11. Qd2 {[%emt 0:06:07]} c6 {[%emt 0:00:36]} 12. Rc1 {[%emt 0:01:55]} Be6 {[%emt 0:00:51]} 13. b3 {[%emt 0:00:21]} Qa5 {[%emt 0:01:55]} 14. e3 {[%emt 0:03:54]} h5 {[%emt 0:01:34]} 15. h4 {[%emt 0:47:32]} O-O-O {[%emt 1:14:06]} 16. O-O {[%emt 0:00:30]} Rhg8 {[%emt 0:00:00]} 17. Rfd1 {[%emt 0:00:00]} Kb8 {[%emt 0:00:00]} 18. Ne2 {[%emt 0:00:00]} Qa3 {[%emt 0:00:00]} 19. Nd4 {[%emt 0:01:30]} Qc5 {[%emt 0:00:00]} 20. Qc2 {[%emt 0:00:30]} Bxg3 {[%emt 0:00:00]} 21. b4 {[%emt 0:00:00]} Qb6 {[%emt 0:00:00]} 22. fxg3 {[%emt 0:00:00]} Rxg3 {[%emt 0:00:00]} 23. c5 {[%emt 0:00:00]} dxc5 {[%emt 0:00:00]} 24. bxc5 {[%emt 0:00:00]} Qc7 {[%emt 0:00:00]} 25. Nxf5 {[%emt 0:00:00]} Rxg2+ {[%emt 0:00:00]} 26. Qxg2 {[%emt 0:00:00]} Bxf5 {[%emt 0:00:00]} 27. Rxd8+ {[%emt 0:00:00]} Qxd8 {[%emt 0:00:00]} 28. Qg3+ {[%emt 0:00:00]} Kc8 {[%emt 0:00:00]} 29. Qg5 {[%emt 0:00:00]} Qxg5+ {[%emt 0:00:00]} 30. hxg5 {[%emt 0:00:00]} h4 {[%emt 0:00:00]} 31. Kf2 {[%emt 0:00:00]} Be6 {[%emt 0:00:00]} 32. e4 {[%emt 0:00:00]} Kc7 {[%emt 0:00:00]} 33. Ke3 {[%emt 0:00:51]} b6 {[%emt 0:00:00]} 34. Kd4 {[%emt 0:00:18]} h3 {[%emt 0:00:00]} 35. Ke5 {[%emt 0:02:02]} Bxa2 {[%emt 0:00:00]} 36. Ra1 {[%emt 0:00:41]} h2 {[%emt 0:00:00]} 37. cxb6+ {[%emt 0:00:09]} Kxb6 {[%emt 0:00:00]} 38. Rh1 {[%emt 0:00:07]} a5 {[%emt 0:00:00]} 39. Rxh2 {[%emt 0:00:08]} Bb3 {[%emt 0:00:00]} 40. Kd4 {[%emt 0:00:49]} c5+ {[%emt 0:00:00]} 41. Kc3 {[%emt 0:30:13]} a4 {[%emt 0:17:27]} 42. Rh6+ {[%emt 0:00:00]} Kc7 {[%emt 0:00:00]} 43. Rf6 {[%emt 0:00:00]} Kd7 {[%emt 0:00:00]} 44. Ra6 {[%emt 0:00:00]} Ke7 {[%emt 0:00:00]} 45. Rc6 {[%emt 0:00:00]} Be6 {[%emt 0:00:00]} 46. Rxc5 {[%emt 0:00:00]} a3 {[%emt 0:00:00]} 47. Ra5 {[%emt 0:00:00]} a2 {[%emt 0:00:00]} 48. Kd4 {[%emt 0:00:00]} Kf8 {[%emt 0:00:00]} 49. g6 {[%emt 0:00:00]} f6 {[%emt 0:00:00]} 50. Ra7 {[%emt 0:00:00]} Bb3 {[%emt 0:00:00]} 51. Kc5 {[%emt 0:03:01]} a1=Q {[%emt 0:00:00]} 52. Rxa1 {[%emt 0:00:06]} Kg7 {[%emt 0:00:00]} 53. Rg1 {[%emt 0:00:24]} Ba4 {[%emt 0:00:00]} 54. Kd6 {[%emt 0:00:06]} Be8 {[%emt 0:00:00]} 55. Ke7 {[%emt 0:00:07]} Bc6 {[%emt 0:00:00]} 56. Rg4 {[%emt 0:00:20]} 1-0

[Event "Serbian League 2024"]
[Site "Bajina Basta"]
[Date "2024.09.30"]
[Round "4.24"]
[White "Zivanovic, Bojan"]
[Black "Popovic, Milan S"]
[Result "1/2-1/2"]
[ECO "E62"]
[WhiteElo "2161"]
[BlackElo "2367"]
[Annotator "RC"]
[PlyCount "31"]
[EventDate "2024.09.26"]
[EventType "team-tourn"]
[EventCountry "SRB"]
[SourceTitle "playchess.com"]
[Source "ChessBase"]
[SourceQuality "1"]
[TimeControl "40/5400+30:1800+30"]

1. Nf3 {[%emt 0:00:12]} Nf6 {[%emt 0:00:29]} 2. g3 {[%emt 0:02:29]} g6 {[%emt 0:00:16]} 3. Bg2 {[%emt 0:00:06]} Bg7 {[%emt 0:00:04]} 4. O-O {[%emt 0:00:09]} O-O {[%emt 0:00:05]} 5. d4 {[%emt 0:00:59]} d6 {[%emt 0:00:41]} 6. c4 {[%emt 0:06:23]} Nc6 {[%emt 0:03:08]} 7. Nc3 {[%emt 0:02:15]} e5 {[%emt 0:00:55]} 8. dxe5 {[%emt 0:09:42]} dxe5 {[%emt 0:00:46]} 9. Bg5 {[%emt 0:04:33]} Be6 {[%emt 0:14:43]} 10. Nd5 {[%emt 0:04:16]} Bxd5 {[%emt 0:07:51]} 11. cxd5 {[%emt 0:00:20]} Qxd5 {[%emt 0:08:22]} 12. Qxd5 {[%emt 0:03:16]} Nxd5 {[%emt 0:00:16]} 13. Nxe5 {[%emt 0:01:13]} Nxe5 {[%emt 0:04:53]} 14. Bxd5 {[%emt 0:00:21]} c6 {[%emt 0:00:12]} 15. Bb3 {[%emt 0:03:33]} h6 {[%emt 0:04:25]} 16. Be3 {[%emt 0:13:46]} 1/2-1/2

[Event "Serbian League 2024"]
[Site "Bajina Basta"]
[Date "2024.09.30"]
[Round "4.26"]
[White "Celik, Hasan Huseyin"]
[Black "Markus, Robert"]
[Result "0-1"]
[ECO "E11"]
[WhiteElo "2425"]
[BlackElo "2586"]
[Annotator "RC"]
[PlyCount "145"]
[EventDate "2024.09.26"]
[EventType "team-tourn"]
[EventCountry "SRB"]
[SourceTitle "playchess.com"]
[Source "ChessBase"]
[SourceQuality "1"]
[TimeControl "40/5400+30:1800+30"]

1. d4 {[%emt 0:00:29]} Nf6 {[%emt 0:00:18]} 2. c4 {[%emt 0:00:16]} e6 {[%emt 0:01:35]} 3. Nf3 {[%emt 0:00:13]} Bb4+ {[%emt 0:00:11]} 4. Nbd2 {[%emt 0:00:09]} d6 {[%emt 0:01:33]} 5. a3 {[%emt 0:00:18]} Bxd2+ {[%emt 0:00:08]} 6. Qxd2 {[%emt 0:00:11]} O-O {[%emt 0:02:34]} 7. e3 {[%emt 0:00:19]} Nbd7 {[%emt 0:00:45]} 8. b4 {[%emt 0:01:11]} a5 {[%emt 0:00:30]} 9. Bb2 {[%emt 0:00:31]} axb4 {[%emt 0:00:13]} 10. axb4 {[%emt 0:00:08]} Rxa1+ {[%emt 0:00:05]} 11. Bxa1 {[%emt 0:00:14]} b5 {[%emt 0:00:06]} 12. cxb5 {[%emt 0:19:33]} Bb7 {[%emt 0:06:14]} 13. Be2 {[%emt 0:05:07]} Ne4 {[%emt 0:05:01]} 14. Qb2 {[%emt 0:13:56]} f5 {[%emt 0:08:08]} 15. O-O {[%emt 0:03:24]} Nb6 {[%emt 0:12:02]} 16. Rc1 {[%emt 0:06:53]} Bd5 {[%emt 0:01:15]} 17. Qc2 {[%emt 0:05:23]} Rf7 {[%emt 0:06:15]} 18. Bc3 {[%emt 0:04:18]} g5 {[%emt 0:09:15]} 19. Ra1 {[%emt 0:03:51]} g4 {[%emt 0:01:46]} 20. Ne1 {[%emt 0:06:44]} Qh4 {[%emt 0:14:55]} 21. Nd3 {[%emt 0:03:33]} Ng5 {[%emt 0:06:19]} 22. Be1 {[%emt 0:06:13]} Nf3+ {[%emt 0:05:10]} 23. Bxf3 {[%emt 0:00:13]} gxf3 {[%emt 0:00:07]} 24. g3 {[%emt 0:02:36]} Qh6 {[%emt 0:01:19]} 25. Nf4 {[%emt 0:02:14]} e5 {[%emt 0:02:10]} 26. dxe5 {[%emt 0:00:22]} dxe5 {[%emt 0:00:06]} 27. h4 {[%emt 0:01:56]} exf4 {[%emt 0:00:06]} 28. exf4 {[%emt 0:00:02]} Qe6 {[%emt 0:02:44]} 29. Qc5 {[%emt 0:01:47]} Na4 {[%emt 0:06:23]} 30. Qa7 {[%emt 0:03:30]} Nb6 {[%emt 0:00:45]} 31. Bc3 {[%emt 0:00:43]} Re7 {[%emt 0:01:34]} 32. Rd1 {[%emt 0:02:56]} Kf7 {[%emt 0:00:55]} 33. Qb8 {[%emt 0:00:27]} Qe2 {[%emt 0:01:49]} 34. Rc1 {[%emt 0:00:40]} Qe6 {[%emt 0:00:47]} 35. Qh8 {[%emt 0:00:52]} Kg6 {[%emt 0:01:02]} 36. Rd1 {[%emt 0:04:45]} Qf7 {[%emt 0:01:20]} 37. Kh2 {[%emt 0:00:52]} Re8 {[%emt 0:00:31]} 38. Qd4 {[%emt 0:00:02]} Kh5 {[%emt 0:01:00]} 39. Qc5 {[%emt 0:01:26]} Be4 {[%emt 0:01:52]} 40. Be5 {[%emt 0:00:22]} Nd7 {[%emt 0:00:41]} 41. Qe3 {[%emt 0:30:51]} h6 {[%emt 0:06:00]} 42. Bxc7 {[%emt 0:00:00]} Nf6 {[%emt 0:00:45]} 43. Qc5 {[%emt 0:00:00]} Ng4+ {[%emt 0:01:25]} 44. Kg1 {[%emt 0:00:00]} Bb7 {[%emt 0:02:09]} 45. Be5 {[%emt 0:00:00]} Rc8 {[%emt 0:00:48]} 46. Qd6 {[%emt 0:00:00]} Qa2 {[%emt 0:02:03]} 47. Bd4 {[%emt 0:00:00]} Qd2 {[%emt 0:02:28]} 48. Bc5 {[%emt 0:00:00]} Qxd6 {[%emt 0:01:33]} 49. Rxd6 {[%emt 0:00:00]} Ra8 {[%emt 0:01:18]} 50. Rd1 {[%emt 0:00:00]} Ra2 {[%emt 0:03:14]} 51. b6 {[%emt 0:00:00]} Rb2 {[%emt 0:02:38]} 52. Kf1 {[%emt 0:00:00]} Ba6+ {[%emt 0:00:15]} 53. Kg1 {[%emt 0:00:00]} Kg6 {[%emt 0:00:20]} 54. Ra1 {[%emt 0:00:00]} Kf7 {[%emt 0:00:25]} 55. Re1 {[%emt 0:00:00]} Re2 {[%emt 0:00:49]} 56. Ra1 {[%emt 0:00:00]} Ke8 {[%emt 0:00:33]} 57. Rd1 {[%emt 0:00:00]} Rb2 {[%emt 0:01:07]} 58. Ra1 {[%emt 0:00:00]} Kd7 {[%emt 0:00:34]} 59. Rd1+ {[%emt 0:00:00]} Kc8 {[%emt 0:01:06]} 60. Rc1 {[%emt 0:00:00]} Kb8 {[%emt 0:01:21]} 61. Rd1 {[%emt 0:00:00]} Bd3 {[%emt 0:01:30]} 62. Ra1 {[%emt 0:00:00]} h5 {[%emt 0:01:10]} 63. Rd1 {[%emt 0:00:00]} Rb3 {[%emt 0:02:34]} 64. Rc1 {[%emt 0:00:00]} Kb7 {[%emt 0:06:56]} 65. Rd1 {[%emt 0:00:00]} Nf6 {[%emt 0:00:00]} 66. Ra1 {[%emt 0:00:00]} Rb1+ {[%emt 0:00:00]} 67. Rxb1 {[%emt 0:00:00]} Bxb1 {[%emt 0:00:00]} 68. Kf1 {[%emt 0:00:00]} Nd5 {[%emt 0:00:00]} 69. Ke1 {[%emt 0:00:00]} Nxb6 {[%emt 0:00:00]} 70. Bxb6 {[%emt 0:00:00]} Kxb6 {[%emt 0:00:00]} 71. Kd2 {[%emt 0:00:00]} Kb5 {[%emt 0:00:00]} 72. Ke3 {[%emt 0:00:00]} Be4 {[%emt 0:00:00]} 73. Kd4 {[%emt 0:17:30]} 0-1

[Event "Serbian League 2024"]
[Site "Bajina Basta"]
[Date "2024.09.30"]
[Round "4.27"]
[White "Perunovic, Milos"]
[Black "Kovacevic, Aleksandar"]
[Result "1/2-1/2"]
[ECO "C42"]
[WhiteElo "2525"]
[BlackElo "2479"]
[Annotator "TA"]
[PlyCount "51"]
[EventDate "2024.09.26"]
[EventType "team-tourn"]
[EventCountry "SRB"]
[SourceTitle "playchess.com"]
[Source "ChessBase"]
[SourceQuality "1"]
[TimeControl "40/5400+30:1800+30"]

{[%evp 21,51,27,18,0,9,22,0,9,15,21,20,16,11,2,0,0,0,2,5,0,3,0,0,0,0,0,0,0,0,0,0,0]} 1. e4 {[%emt 0:00:06]} e5 {[%emt 0:01:01]} 2. Nf3 {[%emt 0:00:22]} Nf6 {[%emt 0:00:27]} 3. Nxe5 {[%emt 0:03:17]} d6 {[%emt 0:00:21]} 4. Nf3 {[%emt 0:00:09]} Nxe4 {[%emt 0:00:11]} 5. d4 {[%emt 0:01:07]} d5 {[%emt 0:00:41]} 6. Bd3 {[%emt 0:02:00]} Bd6 {[%emt 0:01:50]} 7. O-O {[%emt 0:03:35]} O-O {[%emt 0:00:40]} 8. c4 {[%emt 0:04:34]} c6 {[%emt 0:00:37]} 9. Nc3 {[%emt 0:05:17]} Nxc3 {[%emt 0:03:00]} 10. bxc3 {[%emt 0:03:43]} dxc4 {[%emt 0:00:42]} 11. Bxc4 {[%emt 0:00:06]} Bf5 {[%emt 0:00:48]} 12. Ng5 {[%emt 0:10:37] Hoping for g4. The position is equal.} (12. Bd3 {simplifies} Bxd3 13. Qxd3 Nd7 14. c4) 12... h6 {[%emt 0:09:12]} 13. Qf3 {[%emt 0:01:00]} Bg6 {[%emt 0:01:26]} 14. Ne4 {[%emt 0:00:40]} Bxh2+ {[%emt 0:01:34]} 15. Kxh2 {[%emt 0:00:11]} Qh4+ {[%emt 0:00:06]} 16. Qh3 $1 {[%emt 0:00:21]} Qxh3+ {[%emt 0:01:10]} ({Don't play} 16... Qxe4 $6 17. Ba3 Rd8 18. Rae1 Qf4+ 19. g3 $14) 17. gxh3 {[%emt 0:00:10]} Bxe4 {[%emt 0:00:06]} 18. Rg1 {[%emt 0:00:16]} Re8 {[%emt 0:01:49]} 19. Bxh6 {[%emt 0:04:26]} g6 {[%emt 0:00:15] Black is weak on the dark squares} 20. Bb3 {[%emt 0:12:48]} Nd7 {[%emt 0:03:59]} 21. Rae1 {[%emt 0:02:53]} Bf5 {[%emt 0:02:49]} 22. h4 {[%emt 0:06:15]} Nf6 {[%emt 0:04:30] [#] aiming for ...Rxe1.} 23. f3 {[%emt 0:01:31]} b5 {[%emt 0:02:09]} 24. a4 {[%emt 0:08:02]} a5 {[%emt 0:05:56]} 25. Bg5 {[%emt 0:05:38] This pair of bishops is nice.} Nh5 {[%emt 0:05:01]} 26. c4 {[%emt 0:03:09] A rather calm draw.   Weighted Error Value: White=0.02 (flawless) /Black=0.00 (flawless) .  OK:         	White=9     	Black=11     Best:        	---       	Black=1      Strong:       	White=1     	---} 1/2-1/2